bitfinex-derivatives/quotes_BNBF0:USTF0_20250128
["timestamp","ask_amount","ask_price","bid_price","bid_amount"]
[1738024865126,0.2444368,680.06,679.2,0.29446407]
[1738024866225,1.10309127,680.07,679.2,0.29446407]
[1738024866426,0.24442258,680.06,679.2,0.29446407]
[1738024866720,0.24442258,680.05,679.2,0.29446407]
[1738024866927,0.24442258,680.09,679.2,0.29446407]
[1738024867128,0.24442258,680.08,679.2,0.29446407]
[1738024867325,0.24442258,680.07,679.2,0.29446407]
[1738024867526,0.24442258,680.06,679.2,0.29446407]
[1738024867726,0.24442258,680.05,679.2,0.29446407]
[1738024867926,0.24442258,680.09,679.2,0.29446407]
[1738024868128,0.24441626,680.08,679.2,0.29446407]
[1738024868427,0.24441626,680.09,679.2,0.29446407]
[1738024868627,0.24441626,680.08,678.91,1.10506054]
[1738024868828,0.24441626,680.09,678.92,0.270471]
[1738024869020,0.24441626,680.08,678.92,0.270471]
[1738024869221,0.24441626,680.09,678.92,0.270471]
[1738024869426,0.24441626,680.08,678.92,0.270471]
[1738024869628,1.5361243,680.31,678.92,0.270471]
[1738024869629,1.10309127,680.04,678.92,1.37553154]
[1738024869927,0.24439654,680.03,678.93,0.2704717]
[1738024873130,0.24439654,680.03,678.77,0.2704717]
[1738024873323,0.24439654,680.03,678.78,0.29464627]
[1738024873527,0.24439654,680.03,678.79,0.2704717]
[1738024873831,0.24439654,680.03,678.8,0.29463759]
[1738024874030,0.24439654,680.03,678.81,0.2704717]
[1738024874225,0.24439654,680.03,678.82,0.29462891]
[1738024874430,0.24439654,680.03,678.83,0.2704717]
[1738024874633,0.24439654,680.03,678.84,0.29462023]
[1738024874833,0.24439654,680.03,678.85,0.2704717]
[1738024875032,0.24439654,680.03,678.86,0.29461155]
[1738024875234,0.24439654,680.03,678.87,0.2704717]
[1738024875533,1.10309127,680.04,678.88,0.29460287]
[1738024875728,1.10309127,680.04,678.88,1.83077238]
[1738024876028,1.10309127,680.34,678.88,1.83077238]
[1738024876029,1.10309127,680.09,678.88,1.83077238]
[1738024876633,1.10309127,680.09,678.89,0.2704152]
[1738024876829,1.10309127,680.09,678.9,0.29459419]
[1738024877132,1.10309127,680.09,678.91,0.2704152]
[1738024877434,1.10309127,680.09,678.92,0.29458551]
[1738024877635,1.10309127,680.09,678.93,0.2704152]
[1738024877929,1.10309127,680.09,678.94,0.29457684]
[1738024878130,1.10309127,680.09,678.95,0.2704152]
[1738024878328,1.10309127,680.09,678.96,0.29456816]
[1738024878531,1.10309127,680.09,678.97,0.2704152]
[1738024878731,1.10309127,680.09,678.98,0.29455948]
[1738024878935,1.10309127,680.24,678.99,0.2704152]
[1738024879135,0.24445778,680.23,679.0,0.29455081]
[1738024879335,0.24445778,680.23,679.01,0.2704152]
[1738024879532,1.10309127,680.24,679.02,0.29454213]
[1738024879731,0.24445762,680.23,679.02,0.29454213]
[1738024880733,0.24445762,680.23,679.03,0.27041714]
[1738024880932,0.24445762,680.23,679.04,0.29453345]
[1738024881537,1.34754889,680.23,679.04,0.29453345]
[1738024881836,0.24445762,680.22,679.04,0.29453345]
[1738024883541,1.10309127,680.21,679.04,0.29453345]
[1738024883738,0.24445762,680.2,679.04,0.29453345]
[1738024884440,0.24445762,680.2,679.05,0.27039969]
[1738024885140,1.10309127,680.21,679.05,0.27039969]
[1738024885341,1.10309127,680.21,679.06,0.29452478]
[1738024885542,1.10309127,680.21,679.07,0.27039969]
[1738024885735,0.24447417,680.2,679.08,0.29451611]
[1738024886542,1.10309127,680.21,679.08,0.29451611]
[1738024887047,1.10309127,680.26,679.08,0.29451611]
[1738024887243,0.24447064,680.25,679.08,0.29451611]
[1738024889846,1.34756191,680.25,679.08,0.29451611]
[1738024890041,0.24447064,680.24,679.08,0.29451611]
[1738024892448,1.10309127,680.25,679.08,0.29451611]
[1738024892647,0.24446578,680.24,679.08,0.29451611]
[1738024892848,1.10309127,680.16,679.08,0.29451611]
[1738024893147,0.24446578,680.15,679.08,0.29451611]
[1738024893347,1.10309127,680.16,679.08,0.29451611]
[1738024893648,0.24446925,680.15,679.08,0.29451611]
[1738024894446,1.10309127,680.16,679.08,0.29451611]
[1738024894648,0.24447752,680.15,679.08,0.29451611]
[1738024895247,1.10309127,680.16,679.08,0.29451611]
[1738024895548,0.24447642,680.15,679.08,0.29451611]
[1738024895749,1.10309127,680.11,679.08,0.29451611]
[1738024899254,1.10309127,680.13,679.08,0.29451611]
[1738024899455,0.24446597,680.12,679.08,0.29451611]
[1738024903552,1.10309127,680.13,679.08,0.29451611]
[1738024903758,0.24447127,680.12,679.08,0.29451611]
[1738024905159,1.10309127,680.08,679.09,0.27042582]
[1738024905358,0.24447127,680.07,679.09,0.27042582]
[1738024906559,0.24447127,680.07,679.08,0.29451611]
[1738024907362,1.10309127,680.08,679.08,0.29451611]
[1738024907562,0.24448132,680.07,679.08,0.29451611]
[1738024907861,0.24448132,680.07,679.09,0.27043482]
[1738024908064,1.10309127,680.01,679.09,0.27043482]
[1738024908361,0.24448132,680.0,679.09,0.27043482]
[1738024908662,0.24448132,680.0,679.08,0.29451611]
[1738024909465,1.10309127,680.01,679.08,0.29451611]
[1738024909660,0.24454908,680.0,679.08,0.29451611]
[1738024910766,1.10309127,680.01,679.08,0.29451611]
[1738024912065,1.10309127,679.97,679.08,0.29451611]
[1738024915571,1.10309127,680.07,679.08,0.29451611]
[1738024921170,0.24429231,680.06,679.08,0.29451611]
[1738024922470,1.10309127,680.05,679.08,0.29451611]
[1738024922663,0.24429231,680.04,679.08,0.29451611]
[1738024925569,1.10309127,680.05,679.08,0.29451611]
[1738024925764,0.2443618,680.04,679.08,0.29451611]
[1738024925963,1.10309127,680.02,679.08,0.29451611]
[1738024926166,0.2443618,680.01,679.08,0.29451611]
[1738024927364,1.10309127,680.02,679.08,0.29451611]
[1738024927669,0.24431032,680.01,679.08,0.29451611]
[1738024929366,1.10309127,680.02,679.08,0.29451611]
[1738024929670,0.2443117,680.01,679.08,0.29451611]
[1738024933371,0.2443117,680.01,678.61,1.10506054]
[1738024933570,0.2443117,680.01,678.62,0.29471574]
[1738024933773,0.2443117,680.01,678.62,1.83139965]
[1738024936576,1.10309127,679.99,678.62,1.83139965]
[1738024938776,1.10309127,679.97,678.62,1.83139965]
[1738024941181,1.10309127,679.91,678.62,1.83139965]
[1738024944282,1.10309127,679.93,678.62,1.83139965]
[1738024947085,0.2443117,680.01,678.72,1.10506054]
[1738024947585,0.2443117,680.01,678.73,0.29466798]
[1738024947784,0.2443117,680.0,678.73,0.29466798]
[1738024947984,0.2443117,679.99,678.73,0.29466798]
[1738024948179,0.2443117,680.05,678.73,0.29466798]
[1738024948383,0.2443117,680.04,678.73,0.29466798]
[1738024948581,0.2443117,680.05,678.73,0.29466798]
[1738024948785,0.2443117,680.04,678.73,0.29466798]
[1738024949087,0.24434032,680.03,678.73,0.29466798]
[1738024949286,1.10309127,679.99,678.73,0.29466798]
[1738024949480,0.24434032,679.98,678.73,0.29466798]
[1738024951985,1.10309127,679.94,678.73,0.29466798]
[1738024952686,0.24434087,679.93,678.74,0.27050505]
[1738024952886,0.24434087,679.93,678.75,0.2946593]
[1738024953091,0.24434087,679.93,678.76,0.27050505]
[1738024953290,1.10309127,679.94,678.77,0.29465061]
[1738024953490,1.10309127,679.94,678.78,0.27050505]
[1738024953695,1.10309127,679.94,678.79,0.29464193]
[1738024953888,1.10309127,679.94,678.8,0.27050505]
[1738024954089,1.10309127,679.94,678.81,0.29463325]
[1738024954289,1.10309127,679.94,678.82,0.27050505]
[1738024954489,1.10309127,679.94,678.83,0.29462457]
[1738024954883,1.10309127,679.94,678.84,0.27048541]
[1738024955089,1.10309127,679.94,678.85,0.29461589]
[1738024955597,1.10309127,679.96,678.85,0.29461589]
[1738024957895,1.10309127,680.01,678.85,0.29461589]
[1738024960093,1.10309127,680.01,678.86,0.2704489]
[1738024960892,1.10309127,680.02,678.86,0.2704489]
[1738024961494,1.10309127,680.02,678.85,0.29461589]
[1738024961695,1.10309127,680.02,678.86,0.2704291]
[1738024962095,1.10309127,680.02,678.87,0.29460721]
[1738024962294,1.10309127,680.02,678.88,0.2704291]
[1738024962495,1.10309127,680.02,678.89,0.29459853]
[1738024962695,1.10309127,680.02,678.9,0.2704291]
[1738024962896,1.10309127,680.02,678.91,0.29458985]
[1738024963797,1.10309127,680.02,678.92,0.27042228]
[1738024963994,1.10309127,680.02,678.91,0.29458985]
[1738024964190,1.10309127,680.02,678.92,0.27042499]
[1738024964392,1.10309127,680.22,678.91,0.29458985]
[1738024964692,0.24423595,680.21,678.92,0.27042489]
[1738024964891,0.24423595,680.21,678.93,0.29458117]
[1738024966900,1.10309127,680.26,678.93,0.29458117]
[1738024967098,0.2442303,680.25,678.93,0.29458117]
[1738024967397,0.2442303,680.25,678.94,0.27042043]
[1738024967693,0.2442303,680.25,678.95,0.2945725]
[1738024967900,0.2442303,680.25,678.96,0.2704179]
[1738024968096,0.2442303,680.25,678.97,0.29456382]
[1738024969802,0.2442303,680.24,678.97,0.29456382]
[1738024970095,0.2442303,680.23,678.98,0.27040888]
[1738024970398,0.2442303,680.22,678.98,0.27040888]
[1738024970600,1.10309127,680.34,678.97,0.29456382]
[1738024970799,0.24425844,680.33,678.97,0.29456382]
[1738024971198,0.24425844,680.33,678.98,0.27041254]
[1738024971700,0.24425844,680.33,678.99,0.29455514]
[1738024971900,0.24425844,680.33,679.0,0.27041254]
[1738024972199,0.24425844,680.33,679.01,0.29454647]
[1738024972396,0.24425844,680.33,679.02,0.27041254]
[1738024972599,0.24425844,680.32,679.02,0.27041254]
[1738024972799,0.24425844,680.36,679.02,0.27041254]
[1738024972999,0.24425844,680.35,679.02,0.27041254]
[1738024973200,0.24425844,680.34,679.02,0.27041254]
[1738024973401,0.24425844,680.36,679.02,0.27041254]
[1738024973600,0.24425844,680.35,679.02,0.27041254]
[1738024973801,0.24425844,680.36,679.02,0.27041254]
[1738024973996,0.24425844,680.35,679.02,0.27041254]
[1738024974200,0.24425844,680.36,679.01,0.29454647]
[1738024974401,0.24425844,680.35,679.01,0.29454647]
[1738024974698,0.24425844,680.36,679.01,0.29454647]
[1738024974904,0.24425844,680.35,679.01,0.29454647]
[1738024975098,1.10309127,680.25,679.01,0.29454647]
[1738024975301,0.24425844,680.24,679.01,0.29454647]
[1738024977506,1.34734971,680.24,679.01,0.29454647]
[1738024977705,0.24425844,680.23,679.01,0.29454647]
[1738024978001,0.24421882,680.22,679.01,0.29454647]
[1738024978205,1.10309127,680.24,679.01,0.29454647]
[1738024978206,0.24421882,680.21,679.01,0.29454647]
[1738024978408,0.24421882,680.2,679.01,0.29454647]
[1738024978705,0.24421882,680.19,679.01,0.29454647]
[1738024978904,0.24421882,680.23,679.01,0.29454647]
[1738024979105,0.24421882,680.22,679.01,0.29454647]
[1738024979306,0.24421882,680.21,679.01,0.29454647]
[1738024979506,0.24421882,680.23,679.01,0.29454647]
[1738024980207,1.10309127,680.22,679.01,0.29454647]
[1738024980406,0.24421882,680.21,679.01,0.29454647]
[1738024982810,1.34731009,680.21,679.01,0.29454647]
[1738024983004,0.24421882,680.2,679.01,0.29454647]
[1738024984311,1.10309127,680.21,679.01,0.29454647]
[1738024986305,1.10309127,680.23,679.01,0.29454647]
[1738024990111,1.10309127,680.26,679.01,0.29454647]
[1738024990310,0.24428433,680.25,679.01,0.29454647]
[1738024990813,1.10309127,680.26,679.01,0.29454647]
[1738024991014,0.24429051,680.25,679.01,0.29454647]
[1738024991911,1.10309127,680.26,679.01,0.29454647]
[1738024992113,0.24429696,680.25,679.01,0.29454647]
[1738024993709,1.10309127,680.26,679.01,0.29454647]
[1738024993916,1.10309127,680.2,679.01,0.29454647]
[1738024994115,0.24429831,680.19,679.01,0.29454647]
[1738024994314,0.24429831,680.19,679.02,0.27042314]
[1738024994510,0.24429831,680.19,679.02,0.29454213]
[1738024995510,1.10309127,680.2,679.02,0.29454213]
[1738024995715,0.24429974,680.19,679.02,0.29454213]
[1738024996815,1.10309127,680.06,679.02,0.29454213]
[1738024998516,1.10309127,680.06,679.03,0.27042381]
[1738024999315,1.10309127,680.05,679.03,0.27042381]
[1738025000116,1.10309127,680.05,679.02,0.29454213]
[1738025005423,1.10309127,680.13,679.02,0.29454213]
[1738025008120,1.10309127,680.11,679.02,0.29454213]
[1738025011521,1.10309127,680.65,679.02,0.29454213]
[1738025012325,0.24455639,680.58,679.02,0.29454213]
[1738025012625,0.29387131,680.57,679.02,0.29454213]
[1738025012823,0.24455639,680.56,679.02,0.29454213]
[1738025013023,0.29387131,680.57,679.02,0.29454213]
[1738025013327,1.5356611,680.55,679.02,0.29454213]
[1738025013727,0.2445603,680.54,679.02,0.29454213]
[1738025014428,0.2445603,680.54,679.03,0.27036342]
[1738025014629,1.34765157,680.54,679.03,0.27036342]
[1738025014830,0.2445603,680.53,679.03,0.27036342]
[1738025015025,0.2445603,680.53,679.04,0.29453345]
[1738025015229,0.2445603,680.53,679.05,0.27036342]
[1738025015432,0.2445603,680.53,679.06,0.29452478]
[1738025015632,0.2445603,680.53,679.07,0.27036342]
[1738025015832,0.2445603,680.53,679.08,0.29451611]
[1738025016031,0.24460678,680.52,679.09,0.27036323]
[1738025016232,0.24460678,680.51,679.1,0.29450743]
[1738025016429,0.24460678,680.53,679.11,0.27036323]
[1738025016628,0.24460678,680.52,679.12,0.29449876]
[1738025016832,0.24460678,680.53,679.13,0.27036323]
[1738025017034,0.24460678,680.52,679.14,0.29449009]
[1738025017329,1.10309127,680.37,679.15,0.27036323]
[1738025017533,0.24460678,680.36,679.16,0.29448141]
[1738025017827,0.24460678,680.36,679.17,0.27036323]
[1738025018033,0.24460678,680.36,679.17,0.56484031]
[1738025018233,0.24460678,680.36,679.18,0.27036323]
[1738025019731,1.10309127,680.37,679.17,0.29447708]
[1738025019937,0.24461879,680.36,679.18,0.27037813]
[1738025021538,1.10309127,680.23,679.18,0.27037813]
[1738025021733,0.24461879,680.22,679.18,0.27037813]
[1738025022638,1.10309127,680.23,679.17,0.29447708]
[1738025027746,1.10309127,680.29,679.17,0.29447708]
[1738025027946,0.24458468,680.28,679.17,0.29447708]
[1738025032852,0.53858126,680.28,679.17,0.29447708]
[1738025033052,0.24458468,680.27,679.17,0.29447708]
[1738025034353,0.29399658,680.28,679.17,0.29447708]
[1738025034553,0.24454988,680.27,679.17,0.29447708]
[1738025036056,1.10309127,680.11,679.17,0.29447708]
[1738025036657,0.24454959,680.1,679.17,0.29447708]
[1738025037057,1.10309127,680.11,679.17,0.29447708]
[1738025037451,0.2447158,680.1,679.17,0.29447708]
[1738025038157,1.10309127,680.11,679.17,0.29447708]
[1738025038356,0.24472108,680.1,679.17,0.29447708]
[1738025039153,0.24472108,680.17,679.17,0.29447708]
[1738025039352,0.24472108,680.16,679.17,0.29447708]
[1738025039556,0.24472108,680.17,679.17,0.29447708]
[1738025039756,0.24472108,680.16,679.17,0.29447708]
[1738025039953,1.10309127,680.18,679.17,0.29447708]
[1738025039954,0.24472108,680.17,679.17,0.29447708]
[1738025041262,1.10309127,680.18,679.17,0.29447708]
[1738025041455,0.24463926,680.17,679.17,0.29447708]
[1738025042662,1.10309127,680.14,679.17,0.29447708]
[1738025042861,0.24463926,680.13,679.17,0.29447708]
[1738025043159,1.10309127,680.14,679.17,0.29447708]
[1738025043362,0.24463899,680.13,679.17,0.29447708]
[1738025044464,1.10309127,680.14,679.17,0.29447708]
[1738025044958,1.10309127,680.18,679.17,0.29447708]
[1738025047463,0.29399658,680.28,679.17,0.29447708]
[1738025054370,0.24458161,680.27,679.17,0.29447708]
[1738025055966,0.24458619,680.26,679.17,0.29447708]
[1738025056171,0.24458619,680.25,679.17,0.29447708]
[1738025056370,0.29399658,680.28,679.17,0.29447708]
[1738025056371,0.24458619,680.24,679.17,0.29447708]
[1738025056571,0.24458619,680.27,679.17,0.29447708]
[1738025056771,0.24458619,680.26,679.17,0.29447708]
[1738025057071,0.24458619,680.25,679.17,0.29447708]
[1738025057269,0.24458619,680.27,679.17,0.29447708]
[1738025057472,0.24458619,680.26,679.17,0.29447708]
[1738025057673,0.24458619,680.27,679.17,0.29447708]
[1738025057867,0.53859142,680.26,679.17,0.29447708]
[1738025058068,0.53859574,680.25,679.17,0.29447708]
[1738025058268,0.53860006,680.24,679.17,0.29447708]
[1738025058471,0.24458619,680.23,679.17,0.29447708]
[1738025058874,1.10309127,680.08,679.17,0.29447708]
[1738025059169,0.24458619,680.07,679.17,0.29447708]
[1738025061475,1.10309127,680.08,679.17,0.29447708]
[1738025061674,0.24448139,680.07,679.17,0.29447708]
[1738025062072,1.10309127,680.02,679.17,0.29447708]
[1738025062574,0.24449112,680.01,679.17,0.29447708]
[1738025063176,1.10309127,680.02,679.17,0.29447708]
[1738025064276,1.10309127,679.96,679.17,0.29447708]
[1738025067078,1.10309127,679.98,679.17,0.29447708]
[1738025071980,1.10309127,680.2,679.17,0.29447708]
[1738025074379,0.24455671,680.19,679.17,0.29447708]
[1738025075182,0.24455671,680.22,679.17,0.29447708]
[1738025077990,1.10309127,679.98,679.17,0.29447708]
[1738025080290,1.10309127,680.0,679.17,0.29447708]
[1738025084389,1.10309127,680.05,679.17,0.29447708]
[1738025087591,1.10309127,680.08,679.17,0.29447708]
[1738025088391,0.24459077,680.07,679.17,0.29447708]
[1738025088787,1.10309127,680.08,679.17,0.29447708]
[1738025090189,1.10309127,680.09,679.17,0.29447708]
[1738025092991,0.29401387,680.24,679.17,0.29447708]
[1738025106100,0.24460381,680.23,679.17,0.29447708]
[1738025107104,0.29401387,680.24,679.17,0.29447708]
[1738025107304,0.24450284,680.23,679.17,0.29447708]
[1738025109408,1.10309127,680.22,679.17,0.29447708]
[1738025109606,0.24450284,680.21,679.17,0.29447708]
[1738025110208,0.24450284,680.21,679.18,0.27037516]
[1738025110508,1.10309127,680.22,679.18,0.27037516]
[1738025110707,1.10309127,680.22,679.17,0.29447708]
[1738025110907,1.10309127,680.22,679.18,0.27033587]
[1738025111711,1.10309127,680.22,679.19,0.29446841]
[1738025112708,1.10309127,680.29,679.2,0.27033736]
[1738025112907,1.10309127,680.29,679.19,1.39952895]
[1738025113103,1.10309127,680.29,679.2,0.27033681]
[1738025113308,1.10309127,680.29,679.21,0.29445973]
[1738025116009,1.10309127,680.4,679.21,0.29445973]
[1738025116210,1.10309127,680.4,679.22,0.2703264]
[1738025116406,1.10309127,680.4,679.23,0.29445106]
[1738025116610,0.24434376,680.39,679.23,0.29445106]
[1738025117914,1.10309127,680.4,679.23,0.29445106]
[1738025118110,0.24430254,680.38,679.23,0.29445106]
[1738025118309,0.24430254,680.37,679.23,0.29445106]
[1738025118514,0.24430254,680.39,679.23,0.29445106]
[1738025118714,0.24430254,680.38,679.23,0.29445106]
[1738025118914,0.24430254,680.37,679.23,0.29445106]
[1738025119116,0.24430254,680.36,679.23,0.29445106]
[1738025119313,0.24430254,680.35,679.23,0.29445106]
[1738025119511,0.24430254,680.34,679.23,0.29445106]
[1738025119709,1.32370953,680.96,679.23,0.29445106]
[1738025119710,1.10309127,680.31,679.23,0.29445106]
[1738025119912,0.24430254,680.3,679.23,0.29445106]
[1738025122712,1.10309127,680.22,679.23,0.29445106]
[1738025122916,0.24430254,680.21,679.23,0.29445106]
[1738025123417,1.10309127,680.22,679.23,0.29445106]
[1738025123611,0.24432284,680.21,679.23,0.29445106]
[1738025123917,1.10309127,680.22,679.23,0.29445106]
[1738025124217,0.24437114,680.21,679.23,0.29445106]
[1738025124616,1.10309127,680.22,679.23,0.29445106]
[1738025124917,0.24444269,680.21,679.23,0.29445106]
[1738025125519,1.10309127,680.21,679.23,0.29445106]
[1738025125719,0.24441398,680.2,679.23,0.29445106]
[1738025128118,1.10309127,680.16,679.23,0.29445106]
[1738025128320,0.24441398,680.15,679.23,0.29445106]
[1738025132121,1.10309127,680.16,679.23,0.29445106]
[1738025132320,0.24444155,680.15,679.23,0.29445106]
[1738025132823,1.10309127,680.16,679.23,0.29445106]
[1738025133126,0.24443684,680.15,679.23,0.29445106]
[1738025134629,1.10309127,680.16,679.23,0.29445106]
[1738025134832,0.24442504,680.14,679.23,0.29445106]
[1738025135031,0.24442504,680.13,679.23,0.29445106]
[1738025135229,0.24442504,680.18,679.23,0.29445106]
[1738025135428,0.24442504,680.17,679.23,0.29445106]
[1738025135726,0.24442504,680.16,679.23,0.29445106]
[1738025135929,0.24442504,680.15,679.23,0.29445106]
[1738025136230,0.24442504,680.14,679.23,0.29445106]
[1738025136530,0.24442504,680.13,679.23,0.29445106]
[1738025136725,0.24442504,680.18,679.23,0.29445106]
[1738025136926,1.10309127,680.15,679.23,0.29445106]
[1738025137126,0.24442504,680.14,679.23,0.29445106]
[1738025138327,1.10309127,680.15,679.23,0.29445106]
[1738025138524,0.2444132,680.14,679.23,0.29445106]
[1738025140231,1.34750447,680.14,679.23,0.29445106]
[1738025140426,0.2444132,680.13,679.23,0.29445106]
[1738025140731,1.10309127,680.14,679.23,0.29445106]
[1738025143236,1.10309127,680.24,679.23,0.29445106]
[1738025143435,0.24442229,680.23,679.23,0.29445106]
[1738025144129,0.24441728,680.22,679.23,0.29445106]
[1738025144333,0.24441728,680.21,679.23,0.29445106]
[1738025144535,0.24441728,680.2,679.23,0.29445106]
[1738025144733,0.24441728,680.23,679.23,0.29445106]
[1738025144933,1.10309127,680.24,679.23,0.29445106]
[1738025146336,1.10309127,680.23,679.23,0.29445106]
[1738025149633,1.10309127,680.3,679.23,0.29445106]
[1738025153141,1.10309127,680.31,679.23,0.29445106]
[1738025155643,1.10309127,680.26,679.23,0.29445106]
[1738025158340,1.10309127,680.22,679.23,0.29445106]
[1738025158537,0.24442719,680.21,679.23,0.29445106]
[1738025161046,1.10309127,680.22,679.23,0.29445106]
[1738025161247,1.10309127,679.93,679.23,0.29445106]
[1738025164454,1.10309127,679.95,678.96,1.10506054]
[1738025167357,1.10309127,680.11,678.84,1.53640123]
[1738025169555,1.10309127,680.18,678.84,1.53640123]
[1738025169757,0.24432761,680.17,678.84,1.53640123]
[1738025172654,0.24432903,680.16,678.84,1.53640123]
[1738025172857,0.24432903,680.17,678.84,1.53640123]
[1738025173057,0.24432903,680.16,678.84,1.53640123]
[1738025173254,0.24430945,680.15,678.84,1.53640123]
[1738025173458,0.24430945,680.17,678.84,1.53640123]
[1738025175366,0.24430945,680.16,678.84,1.53640123]
[1738025175666,0.24430945,680.15,678.84,1.53640123]
[1738025175866,0.24430945,680.18,678.84,1.53640123]
[1738025176160,0.24430945,680.17,678.84,1.53640123]
[1738025176365,0.24430945,680.18,678.84,1.53640123]
[1738025176566,0.24430945,680.17,678.84,1.53640123]
[1738025176866,0.24430945,680.16,678.84,1.53640123]
[1738025177061,0.24430945,680.15,678.84,1.53640123]
[1738025177262,0.24430945,680.14,678.84,1.53640123]
[1738025177461,0.24430945,680.18,678.84,1.53640123]
[1738025177666,0.24430945,680.17,678.84,1.53640123]
[1738025177866,0.24430945,680.16,678.84,1.53640123]
[1738025178167,1.34740072,680.15,678.84,1.53640123]
[1738025178467,0.24430945,680.14,678.84,1.53640123]
[1738025180365,0.24430945,680.14,678.84,1.83102146]
[1738025180772,0.24430945,680.14,678.85,0.2704845]
[1738025181671,1.10309127,680.15,678.84,1.83102146]
[1738025181871,0.2443282,680.14,678.85,0.2704873]
[1738025182168,1.10309127,680.13,678.85,0.2704873]
[1738025182372,0.2443282,680.12,678.85,0.2704873]
[1738025184174,0.2443282,680.12,678.84,1.83102146]
[1738025184474,0.24443656,680.11,678.84,1.83102146]
[1738025184674,0.24443656,680.12,678.84,1.83102146]
[1738025184870,0.24443656,680.11,678.84,1.83102146]
[1738025185077,0.24443656,680.12,678.84,1.83102146]
[1738025185378,1.10309127,680.13,678.84,1.83102146]
[1738025185680,1.10309127,679.98,678.84,1.83102146]
[1738025188777,0.24435297,679.97,678.84,1.83102146]
[1738025188973,1.10309127,679.98,678.85,0.29461589]
[1738025189271,1.10309127,680.08,678.85,0.29461589]
[1738025189477,0.24435718,680.07,678.85,0.29461589]
[1738025190875,1.10309127,680.08,678.85,0.29461589]
[1738025191078,0.24436801,680.07,678.85,0.29461589]
[1738025192181,1.10309127,679.98,678.85,0.29461589]
[1738025192374,0.24436801,679.97,678.85,0.29461589]
[1738025192681,1.10309127,679.98,678.85,0.29461589]
[1738025193880,0.24433822,679.97,678.85,0.29461589]
[1738025194282,1.10309127,679.98,678.85,0.29461589]
[1738025194482,0.24433561,679.97,678.85,0.29461589]
[1738025195183,1.10309127,679.96,678.85,0.29461589]
[1738025196583,0.24433672,679.95,678.85,0.29461589]
[1738025196986,1.10309127,679.96,678.85,0.29461589]
[1738025197484,0.24428206,679.95,678.85,0.29461589]
[1738025198386,1.10309127,679.89,678.85,0.29461589]
[1738025201788,1.10309127,679.81,678.85,0.29461589]
[1738025204490,0.24428491,679.8,678.86,0.27051219]
[1738025204689,1.10309127,679.81,678.85,0.29461589]
[1738025205587,1.10309127,679.79,678.85,0.29461589]
[1738025208895,1.10309127,679.81,678.85,0.29461589]
[1738025212392,0.24416346,679.8,678.85,0.29461589]
[1738025212597,1.10309127,679.81,678.85,0.29461589]
[1738025212796,0.24415159,679.8,678.85,0.29461589]
[1738025215499,1.10309127,679.75,678.85,0.29461589]
[1738025215700,0.24415159,679.74,678.85,0.29461589]
[1738025215895,1.10309127,679.75,678.85,0.29461589]
[1738025216200,0.24414356,679.74,678.85,0.29461589]
[1738025218002,1.10309127,679.75,678.85,0.29461589]
[1738025218202,1.10309127,679.8,678.85,0.29461589]
[1738025218498,0.24412623,679.79,678.85,0.29461589]
[1738025219098,0.24412623,679.79,678.47,1.10506054]
[1738025220002,0.24409715,679.78,678.47,1.10506054]
[1738025220201,0.24409715,679.77,678.47,1.10506054]
[1738025220400,0.24409715,679.79,678.47,1.10506054]
[1738025220602,0.24409715,679.78,678.47,1.10506054]
[1738025220795,0.24409715,679.77,678.47,1.10506054]
[1738025220996,0.24409715,679.79,678.47,1.10506054]
[1738025221197,0.24409715,679.79,678.44,1.53721564]
[1738025221198,0.24409715,679.79,678.48,0.27062648]
[1738025221397,0.24409715,679.79,678.45,0.27062648]
[1738025221599,0.24409715,679.79,678.46,0.27062648]
[1738025221903,0.24409715,679.79,678.47,0.27062648]
[1738025222102,0.24409715,679.79,678.45,0.27062648]
[1738025222303,1.10309127,679.8,678.44,1.53721564]
[1738025222503,0.24408141,679.79,678.45,0.2706265]
[1738025222802,0.24408141,679.79,678.44,1.53721564]
[1738025223906,0.24408141,679.79,678.45,0.29478959]
[1738025224305,0.24408141,679.79,678.46,0.2706168]
[1738025224501,0.24408141,679.79,678.47,0.2947809]
[1738025224907,1.10309127,679.8,678.47,0.2947809]
[1738025225106,1.10309127,680.17,678.47,0.2947809]
[1738025225107,1.10309127,679.78,678.48,0.27061915]
[1738025225301,0.24410008,679.77,678.48,0.27061915]
[1738025225911,0.24410008,679.77,678.49,0.29477221]
[1738025226611,1.10309127,679.78,678.49,0.29477221]
[1738025226808,0.24407881,679.77,678.49,0.29477221]
[1738025227611,0.24407881,679.77,678.5,0.27062381]
[1738025227911,0.24407881,679.77,678.51,0.29476352]
[1738025228112,0.24407881,679.81,678.51,0.29476352]
[1738025230416,1.10309127,679.82,678.51,0.29476352]
[1738025230616,0.24401719,679.81,678.51,0.29476352]
[1738025230810,1.10309127,679.83,678.51,0.29476352]
[1738025230811,0.24401719,679.82,678.51,0.29476352]
[1738025231014,0.24401719,679.81,678.51,0.29476352]
[1738025231215,0.24401719,679.82,678.52,0.27061395]
[1738025231413,0.24401719,679.81,678.53,0.29475483]
[1738025231615,0.24401719,679.8,678.54,0.27061395]
[1738025231811,0.24401719,679.79,678.55,0.29474614]
[1738025232014,0.24401719,679.78,678.56,0.27061395]
[1738025232215,1.10309127,679.83,678.57,0.29473746]
[1738025241027,1.10309127,679.74,678.57,0.29473746]